Cogmind - Beta 16 @@@ ROGUE MODE // 2025.12.03 @ 16:15:35 Player: Sir Cheese Result: Self-destructed Performance ------------- Evolutions (1) 500 Regions Visited (3) 600 Robots Destroyed (36) 180 Value Destroyed (720) 720 Prototype IDs (1) 20 Alien Tech Used (0) 0 Bonus (0) 0 TOTAL SCORE: 2020 Bonus ------- None Cogmind --------- Core Integrity 244/400 Matter 300/300 Energy 100/100 System Corruption 0% Temperature Cool (0) Movement Core (250) Ox4 Location -9/Mines Parts ------- > --- POWER (1) -------- (None) > --- PROPULSION (2) --- (None) > --- UTILITY (4) ------ Medium Storage Unit Signal Interpreter Melee Analysis Suite Core Shielding > --- WEAPON (2) ------- Katana > --- INVENTORY (10) --- Improved Ion Engine Aluminum Leg Heat Sink Improved Heat Sink Large Storage Unit Improved Terrain Scanner Terrain Scan Processor Particle Gun Mining Laser Peak State ------------ > --- POWER ------------ Light Nuclear Core > --- PROPULSION ------- Aluminum Leg Improved Aluminum Leg > --- UTILITY ---------- Medium Storage Unit Signal Interpreter Melee Analysis Suite Core Shielding > --- WEAPON ----------- Light Assault Rifle Katana > --- INVENTORY -------- Light Ion Engine Aluminum Leg Heat Sink Improved Heat Sink Large Storage Unit Improved Terrain Scanner Particle Gun Mining Laser [Rating: 17] Favorites ----------- Power Ion Engine Engine Ion Engine Power Core Light Nuclear Core Propulsion Light Treads Treads Light Treads Leg Improved Aluminum Leg Utility Medium Storage Unit Device Seismic Detector Storage Medium Storage Unit Processor Melee Analysis Suite Hackware Hacking Suite Protection Core Shielding Weapon Medium Laser Energy Gun Medium Laser Ballistic Gun Light Assault Rifle Impact Weapon Flail Slashing Weapon Katana Build | -11 -10 -9 -9 ------- Run | Yrd Mat Mat Min Slots Evolved 2 | . . 2 . Power . | . . . . Propulsion . | . . . . Utility 2 | . . 2 . Weapon . | . . . . Parts Attached 26 | 8 5 2 11 Power 6 | 2 . 1 3 Engine 4 | 2 . . 2 Core 2 | . . 1 1 Reactor . | . . . . Propulsion 5 | 2 . . 3 Treads 2 | 2 . . . Leg 3 | . . . 3 Wheel . | . . . . Hover . | . . . . Flight . | . . . . Utility 9 | 2 3 1 3 Device 1 | 1 . . . Storage 2 | 1 1 . . Processor 3 | . 1 . 2 Hackware 1 | . . 1 . Protection 2 | . 1 . 1 Artifact . | . . . . Weapon 6 | 2 2 . 2 Energy Gun 3 | 1 2 . . Energy Cannon . | . . . . Ballistic Gun 1 | 1 . . . Ballistic Cannon . | . . . . Launcher . | . . . . Special Weapon . | . . . . Impact Weapon 1 | . . . 1 Slashing Weapon 1 | . . . 1 Piercing Weapon . | . . . . Special Melee Weapon . | . . . . Unidentified Prototypes 1 | . 1 . . Parts Lost 14 | . . 2 12 Power 3 | . . . 3 Propulsion 3 | . . 1 2 Utility 3 | . . 1 2 Weapon 5 | . . . 5 Highest Loss Streak 4 | . . 1 4 To Critical Strikes . | . . . . Average Backups 7 | 2 7 8 8 Power 1 | . 1 1 1 Propulsion . | . . . . Utility 3 | . 4 4 4 Weapon 2 | . 2 3 2 Tool/Special . | . . . . Unused Backups 12 | 2 2 . 8 Power . | . . . . Propulsion 1 | . . . 1 Utility 7 | 1 1 . 5 Weapon 4 | 1 1 . 2 Tool/Special . | . . . . Average Slot Usage (%) 94 | . 100 86 86 Engine 9 | . 14 . 6 Core 2 | . . 11 3 Treads 18 | . 28 19 . Leg 6 | . . . 19 Device 8 | . 11 11 3 Storage 12 | . 14 11 11 Processor 4 | . 1 . 12 Protection 4 | . . 9 9 Energy Gun 18 | . 21 19 14 Ballistic Gun 5 | . 7 2 3 Peak Build Rating 17 | 7 11 16 17 Average Rating 10 | 5 8 14 13 On Entrance 8 | . 7 11 14 Avg Prop Armor Cover (%) . | . . . . Naked Turns . | . . . . Heaviest Build 25 | 14 23 25 22 Greatest Support 40 | 40 40 40 23 Greatest Overweight (x) 6 | . . 1 6 Average Overweight (x) . | . . . . Largest Inventory Capacity 10 | 8 10 10 10 Average Capacity 9 | 7 9 10 10 Most Carried 10 | 5 10 10 10 Average Carried 7 | 2 8 8 8 Final Capacity 10 | 8 10 10 10 Final Carried 10 | 3 10 9 9 Class Distribution -------------------- 75% | Mutant 24% | Scavenger-Mutant Dominant Class ---------------- Mutant | -10/Materials Mutant | -9/Materials Scavenger-Mutant | -9/Mines Resources | -11 -10 -9 -9 ----------- Run | Yrd Mat Mat Min Matter Collected 545 | 272 105 42 126 Remotely . | . . . . Salvage Created 1036 | 124 396 168 348 Parts 74 | 14 23 17 20 Haulers Intercepted 1 | . 1 . . Recyclers Shooed . | . . . . Parts Field Recycled . | . . . . Retrieved Matter . | . . . . Parts Self-Destructed . | . . . . Prevented . | . . . . Parts Restored . | . . . . Kills | -11 -10 -9 -9 ------- Run | Yrd Mat Mat Min Combat Hostiles Destroyed 26 | . 10 8 8 Melee 1 | . . . 1 Guns 19 | . 8 5 6 AOE 6 | . 2 3 1 Classes Destroyed 10 | 2 6 1 1 Worker 2 | . 1 . 1 Tunneler 3 | 3 . . . Hauler 1 | . 1 . . Recycler 1 | 1 . . . Operator 1 | . 1 . . Watcher 2 | . 2 . . Swarmer 14 | . 6 7 1 Grunt 10 | . 4 . 6 Duelist 1 | . . . 1 Sentry 1 | . . 1 . Best Kill Streak 4 | 4 4 4 2 Combat Bots Only 4 | . 3 4 2 Max Kills in Single Turn 3 | 1 2 3 1 Gunslinging 1 | . . 1 . Exploded 3 | . 1 3 1 Melee 1 | . . . 1 Uniques/NPCs Destroyed . | . . . . Combat | -11 -10 -9 -9 -------- Run | Yrd Mat Mat Min Hostile Shots Fired 155 | . 32 45 78 Missed 42 | . 9 11 22 Hits 113 | . 23 34 56 Melee 9 | . . . 9 Projectile 104 | . 23 34 47 Critical Strikes 3 | . . . 3 Damage Taken 1491 | . 224 422 845 Core 187 | . 31 51 105 Absorbed by Shields . | . . . . Redirected to Shielding 16 | . . . 16 Core Remaining (%) 93 | 100 87 . . Volleys Fired 79 | 6 27 11 35 Largest 2 | 2 2 2 2 Hottest 95 | 70 95 95 95 Shots Fired 133 | 12 50 20 51 Gun 133 | 12 50 20 51 Cannon . | . . . . Launcher . | . . . . Special . | . . . . Kinetic 40 | 6 11 2 21 Thermal 50 | 6 27 5 12 Explosive . | . . . . Electromagnetic 43 | . 12 13 18 Robot Hit Streak 6 | 6 6 3 6 Robot Miss Streak 3 | 2 2 3 3 Penetration Max . | . . . . Secondary Targets 6 | . 2 2 2 Max Gunslinging Chain 1 | . 1 1 1 Shots Hit Robots 89 | 8 31 13 37 Core Hits 57 | 6 22 10 19 Critical Kills . | . . . . Critical Parts Destroyed . | . . . . Critical Strikes 5 | 2 2 . 1 Burn 5 | 2 2 . 1 Melee Attacks 4 | . . . 4 Impact . | . . . . Slashing 4 | . . . 4 Piercing . | . . . . Sneak Attacks 1 | . . . 1 Combat Hostiles . | . . . . Follow-up Attacks . | . . . . Damage Inflicted 1412 | 81 519 238 574 Guns 1112 | 81 431 165 435 Cannons . | . . . . Explosions 206 | . 88 73 45 Melee 94 | . . . 94 Ramming . | . . . . Kinetic 197 | 32 74 6 85 Thermal 555 | 49 262 97 147 Explosive . | . . . . Electromagnetic 566 | . 183 135 248 Impact . | . . . . Slashing 94 | . . . 94 Piercing . | . . . . Highest Corruption . | . . . . Average Corruption . | . . . . Corruption Purged . | . . . . Corruption Blocked . | . . . . Overload Shots . | . . . . Overflow Damage 6 | . . . 6 Projectiles . | . . . . Explosions 6 | . . . 6 Melee . | . . . . Knockbacks . | . . . . Impact . | . . . . Kinetic . | . . . . Secondary . | . . . . Self-Inflicted Damage 85 | . . 74 11 Shots 2 | . . 1 1 Rammed . | . . . . Targets Rammed . | . . . . Kicked . | . . . . Crushed . | . . . . Highest Temperature 195 | 40 168 195 185 Average Temperature 63 | 19 60 76 71 Received Heat Transfer 363 | . 75 36 252 Siege Activations . | . . . . Martial Activations . | . . . . Shielding Activations . | . . . . Robots Disrupted . | . . . . Combat Hostiles . | . . . . Robots Corrupted . | . . . . Combat Hostiles . | . . . . Parts Fried 1 | . 1 . . Impact Corruptions . | . . . . Robots Melted . | . . . . Combat Hostiles . | . . . . Parts Melted 3 | 1 2 . . Heat Transferred 1606 | 296 766 124 420 Parts Sabotaged . | . . . . Parts Stolen . | . . . . Parts Stripped . | . . . . Power Chain Reactions 4 | . 2 1 1 Alert | -11 -10 -9 -9 ------- Run | Yrd Mat Mat Min Maximum Alert Level . | . . . . Low Security (%) 100 | 100 100 100 100 Level 1 . | . . . . Level 2 . | . . . . Level 3 . | . . . . Level 4 . | . . . . Level 5 . | . . . . High Security . | . . . . Max Security . | . . . . Peak Influence 199 | 10 78 199 96 Initial 73 | . . 21 73 Average 32 | 1 18 88 50 Influence Increases 836 | 20 305 258 253 Destroy 0b10 Robot/C 520 | . 200 160 160 Destroy 0b10 Robot/NC 50 | 20 25 . 5 Destroy Leader 126 | . 56 30 40 Successful Hack 18 | . 18 . . Disable Machine 45 | . . 30 15 Destroy Structure 47 | . 6 38 3 Lose Combat Pursuer 30 | . . . 30 Influence Decreases 835 | 20 254 120 441 Entered New Map 146 | . . 30 116 Time Decay 487 | 20 192 70 205 Lost Part 140 | . . 20 120 Purge Threat 62 | . 62 . . Squads Dispatched 2 | . 2 . . Investigation 1 | . 1 . . Extermination . | . . . . Reinforcement 1 | . 1 . . Assault . | . . . . Garrison . | . . . . Intercept . | . . . . Searches Triggered . | . . . . Construction Impeded . | . . . . Haulers Reinforced . | . . . . Active Scanning Responses . | . . . . Cargo Convoy Interrupts . | . . . . Stealth | -11 -10 -9 -9 --------- Run | Yrd Mat Mat Min Distress Signals 2 | . 1 1 . Communications Jammed . | . . . . Distress Signals . | . . . . Times Spotted 37 | . 14 10 13 Peak Tracking Total 5 | . 3 5 3 Tactical Retreats 1 | . . . 1 Traps | -11 -10 -9 -9 ------- Run | Yrd Mat Mat Min Traps Triggered 1 | . 1 . . Indirectly . | . . . . Trap Hack Attempts . | . . . . Triggered . | . . . . Disarmed 1 | . 1 . . Reprogrammed . | . . . . Reused . | . . . . Traps Extracted . | . . . . Installed . | . . . . Triggered . | . . . . Machines | -11 -10 -9 -9 ---------- Run | Yrd Mat Mat Min Machines Disabled 3 | . . 2 1 Max in Single Turn 2 | . . 2 1 Machines Repaired . | . . . . Machines Dismantled . | . . . . Machines Sabotaged . | . . . . Overloaded Fab Kills . | . . . . Hacking | -11 -10 -9 -9 --------- Run | Yrd Mat Mat Min Machines Accessed 5 | . 5 . . Terminals 4 | . 4 . . Fabricators . | . . . . Repair Stations . | . . . . Recycling Units 1 | . 1 . . Scanalyzers . | . . . . Garrison Access . | . . . . Total Hacks 17 | . 17 . . Successful 6 | . 6 . . Failed 11 | . 11 . . Catastrophic 1 | . 1 . . Database Lockouts . | . . . . Manual 2 | . 2 . . Terminals 15 | . 15 . . Fabricators . | . . . . Repair Stations . | . . . . Recycling Units 2 | . 2 . . Scanalyzers . | . . . . Garrison Access . | . . . . Terminal Hacks 5 | . 5 . . Alert Level 1 | . 1 . . Unreport Threat 1 | . 1 . . Locate Traps 2 | . 2 . . Disarm Traps 1 | . 1 . . Fabricator Hacks . | . . . . Repair Station Hacks . | . . . . Recycling Unit Hacks 1 | . 1 . . Report Inventory 1 | . 1 . . Scanalyzer . | . . . . Garrison Access Hacks . | . . . . Unauthorized Hacks . | . . . . Terminals . | . . . . Fabricators . | . . . . Repair Stations . | . . . . Recycling Units . | . . . . Scanalyzers . | . . . . Garrison Access . | . . . . Data Cores Recovered . | . . . . Used . | . . . . Hacking Detections 4 | . 4 . . Full Trace Events . | . . . . Feedback Events . | . . . . Feedback Blocked . | . . . . Robot Schematics Acquired . | . . . . Robots Built . | . . . . Authchips . | . . . . Time . | . . . . Total Robot Build Rating . | . . . . Part Schematics Acquired . | . . . . Parts Built . | . . . . Authchips . | . . . . Time . | . . . . Total Part Build Rating . | . . . . Part Studies Acquired . | . . . . Parts Repaired . | . . . . Time . | . . . . Parts Recycled . | . . . . Recycled Matter . | . . . . Retrieved Matter . | . . . . Retrieved Components . | . . . . Parts Scanalyzed . | . . . . Part Schematics Acquired . | . . . . Parts Damaged . | . . . . Bothacking | -11 -10 -9 -9 ------------ Run | Yrd Mat Mat Min Used RIF Installer . | . . . . Robots Hacked . | . . . . Non-combat . | . . . . Combat . | . . . . Robot Hacks Applied . | . . . . Relay Couplers Released . | . . . . Fabnet Peak Effective % . | . . . . Robots Rewired . | . . . . Allies Hacked . | . . . . Hacks Repelled . | . . . . Allies | -11 -10 -9 -9 -------- Run | Yrd Mat Mat Min Total Allies . | . . . . Largest Group . | . . . . Highest-Rated Group . | . . . . Highest-Rated Ally . | . . . . Total Orders . | . . . . Ally Attacks . | . . . . Total Damage . | . . . . Kills . | . . . . Allies Corrupted . | . . . . Allies Melted . | . . . . Intel | -11 -10 -9 -9 ------- Run | Yrd Mat Mat Min Active Infowar (turns) 986 | 38 680 146 122 Seismic 986 | 38 680 146 122 Robot Analysis Total . | . . . . Derelict Logs Recovered . | . . . . Drone Launches . | . . . . Drone Recoveries . | . . . . Exploration | -11 -10 -9 -9 ------------- Run | Yrd Mat Mat Min Turns Passed 1575 | 167 810 146 452 Spaces Moved 842 | 83 437 63 259 Core 11 | 4 . . 7 Treads 579 | 79 437 63 . Legs 252 | . . . 252 Wheels . | . . . . Hover . | . . . . Flight . | . . . . Fastest Speed 50 | 50 160 160 120 Average Speed 150 | 154 160 173 126 Slowest Speed 350 | 160 160 240 350 Overloaded Moves . | . . . . Propulsion Burnouts . | . . . . Robots Hopped . | . . . . Potential Cave-ins . | . . . . Cave-ins Triggered . | . . . . Exploration Rate (%) 35 | 6 73 13 51 Regions Visited 3 Branch Regions 1 Pre-discovered Areas . | . . . . Known Exits Taken 1 | . 1 . . Unknown Exits Taken 2 | 1 . 1 . Scrap Searched 1 | . . . 1 Spaces Dug . | . . . . Terrain Destroyed 51 | . 5 43 3 Melee . | . . . . Projectile . | . . . . AOE 51 | . 5 43 3 Terrain Rammed . | . . . . Walls Destroyed . | . . . . Machines Disabled . | . . . . Actions | -11 -10 -9 -9 --------- Run | Yrd Mat Mat Min Total 1022 | 112 500 79 331 Wait 15 | . 13 . 2 Move 839 | 82 436 62 259 Hop . | . . . . Pick Up 38 | 13 11 1 13 Fast Attach 2 | . . . 2 Attach 20 | 7 1 2 10 Detach . | . . . . Swap 13 | 1 7 3 2 Drop 12 | 3 5 . 4 Fire 79 | 6 27 11 35 Melee 4 | . . . 4 Ram . | . . . . Kick . | . . . . Crush . | . . . . Escape Stasis . | . . . . Rewire . | . . . . Trap . | . . . . Miscellaneous . | . . . . Route ------- -11/Scrapyard -10/Materials (discovered 5 exits: *Mat x3 / [*Min] / [*Sub]) -9/Materials -9/Mines (discovered 1 exit: *Mat) History --------- Turn | Location | Event 13 | -11/Scrapyard | Discovered new exit (range 16) 168 | -11/Scrapyard | Entered Materials 302 | -10/Materials | Build established: Mutant 306 | -10/Materials | Discovered new exit (range 16) 483 | -10/Materials | Discovered new exit (range 16) 552 | -10/Materials | Identified exit to Materials 796 | -10/Materials | Discovered exit to Materials (range 13) 836 | -10/Materials | Discovered new exit (range 12) 920 | -10/Materials | Discovered exit to Materials (range 3) 978 | -10/Materials | Entered another Materials area 978 | -9/Materials | Evolved 2 slots: Utility x2 1086 | -9/Materials | Discovered new exit (range 12) 1124 | -9/Materials | Entered Mines 1170 | -9/Mines | Lost 3 parts (1n1u1w) 1453 | -9/Mines | Discovered new exit (range 6) 1462 | -9/Mines | Identified exit to Materials 1465 | -9/Mines | Lost 4 parts (2p2w) 1482 | -9/Mines | Build established: Scavenger-Mutant 1576 | -9/Mines | Self-destructed Last Messages --------------- S-10 Pest destroyed. Acquired 13 matter. Acquired 2 matter. Acquired Terrain Scan Processor. Acquired Flail. Searching scrap... Found Imp. Ion Engine. Found 60 Matter. Dropped Lgt. Ion Engine. Acquired Imp. Ion Engine. Dropped Lgt. Nuclear Core. Acquired Lgt. Ion Engine. Lgt. Assault Rifle destroyed. Aluminum Leg severed. Lgt. Ion Engine destroyed. Sneak attack on K-01 Serf. K-01 Serf destroyed. Imp. Aluminum Leg destroyed. Acquired 5 matter. Flail destroyed. Map ----- +----------------------------------------------------+ | ????????????????????????????????????????????? | | ????????????????????????????????????????????? | | ????????????????????????????????????????????? | | ????????????????????????????????????????????? | | ????????????????????????????????????????????? | | ????????????????????????????????????????????? | | ????????????????????????????????????????????? | | ????????????????????????????????????????????? | | ????????????????????????????????????????????? | | ???????????????????????###??????????????????? | | ??????????????????????## ??????????????????? | | ?????????????????????## ??????????????????? | | ?????????????????????? ??????????????????? | | ??????????????????????? ??????????????????? | | ???????????????????????# ??????????????????? | | ???????????????????????# ??????????????????? | | ???????????????????????# ###???????????????? | | ???????????????????????# #???????????????? | | ???????????????????????# #########???????? | | ?????????????????????????# #???????? | | ????????????????????###### ####### #???????? | | ????????????????????# = *% #?????# #######?? | | ????????????????????#=#### #?????# #?? | | ????????????????????#%##?# #?????####### ### | | ??????????????????###l=###$ #???????????# | | ??????????????????# @ g## #???????????#### | | ????????????????# g## ??????????????# | | ??????????????# ## ##????########## | | ?????????????# t##? #??# | | ????????????# """ ##??? #?????# ####### | | ???????????# """ #????? ?????????????## | | ??????????# """ ?????? #?????????????## | | ??????????# ????? ##??????????????? | | ??????????##??? # ????? #???????????????? | | ????????????????##??????? ???????????????? | | ????????????????????????? ?#??????????????? | | ?????????????????????????# ????????????????? | | ????????????????????????????????????????????? | | ????????????????????????????????????????????? | | ????????????????????????????????????????????? | | | | | | | | | | | | | | | | | | | | | +----------------------------------------------------+ Best States ------------- Heat Dissipation 28 Energy Generation 14 Energy Capacity 250 Matter Stores 300 Matter Capacity 300 Sight Range 16 Terrain Scan Density 10 Armor Coverage 150 Core Shielding 20 Evasion (%) 55 Melee Accuracy 5 Recoil Reduction 2 Offensive Hacking 10 Item Schematics ----------------- None Robot Schematics ------------------ None Fabricated ------------ Nothing Repaired ---------- Nothing Studied --------- None Alien Tech Used ----------------- None Achievements -------------- None Challenges ------------ None Game ------ Seed MassRocketMapper Manual? 0 Play Time 00:13:38 Cumulative 39.2 hours Start 2025.12.02 @ 16:44:28 End 2025.12.03 @ 16:15:35 Sessions 2 Manual Loads 0 Difficulty Rogue Special Mode None Game No. 38 Rogue 10 Adventurer 21 Explorer 7 Win Type - Total 1 Types 1/0/0/0/0/0/0/0/0/0 Lore% 41 Gallery% 39 Achievement% 32 Wizard Run 0 Options --------- Layout 1 ASCII 0 Keyboard 0 Movement Mouse Keybinds 0 Fullscreen 1 Font 48/Smallcaps Map View 50x35 Zoom Use 0% Tactical HUD 0 Map Filters NONE Filters NONE Steam 1 RUN: 5133f953-e595-4156-b5c5-b818d3e0a16f